[Event "*** Titled Tuesday Blitz"]
[Site "Chess.com"]
[Date "2019.02.05"]
[Round "2"]
[White "HouseOfDurin"]
[Black "Andrew-FB00"]
[Result "0-1"]
[WhiteElo "1902"]
[BlackElo "1869"]
[TimeControl "180+2"]
[EndTime "13:23:45 PST"]
[Termination "Andrew-FB00 won by resignation"]

1. d4 {[%clk 0:03:01.9]} 1... Nf6 {[%clk 0:03:00.1]} 2. Bg5 {[%clk 0:03:02.9]}
2... e6 {[%clk 0:03:00]} 3. e4 {[%clk 0:03:03.1]} 3... h6 {[%clk 0:02:59.6]} 4.
Bxf6 {[%clk 0:03:02.8]} 4... Qxf6 {[%clk 0:02:59.8]} 5. e5 {[%clk 0:03:04.1]}
5... Qg6 {[%clk 0:03:00]} 6. Qd3 {[%clk 0:03:01]} 6... Qxd3 {[%clk 0:02:57.4]}
7. Bxd3 {[%clk 0:03:02.9]} 7... d6 {[%clk 0:02:56.4]} 8. Nc3 {[%clk 0:02:58]}
8... dxe5 {[%clk 0:02:56.6]} 9. dxe5 {[%clk 0:02:59.9]} 9... Nc6 {[%clk
0:02:57]} 10. f4 {[%clk 0:02:58.5]} 10... Bb4 {[%clk 0:02:56.7]} 11. Ne2 {[%clk
0:02:58.3]} 11... O-O {[%clk 0:02:51.8]} 12. O-O-O {[%clk 0:02:59.7]} 12... b6
{[%clk 0:02:47.1]} 13. Be4 {[%clk 0:02:51.5]} 13... Bb7 {[%clk 0:02:47.1]} 14.
Rd7 {[%clk 0:02:44.3]} 14... Rac8 {[%clk 0:02:41.3]} 15. Nb5 {[%clk 0:02:26.8]}
15... a6 {[%clk 0:02:17.4]} 16. Nxc7 {[%clk 0:02:25.4]} 16... Rfd8 {[%clk
0:02:14.6]} 17. Rhd1 {[%clk 0:02:15]} 17... Rxd7 {[%clk 0:02:07]} 18. Rxd7
{[%clk 0:02:16.9]} 18... Ba8 {[%clk 0:01:59.4]} 19. Bf3 {[%clk 0:01:28.2]} 19...
Nb8 {[%clk 0:01:52.3]} 20. Bxa8 {[%clk 0:00:48.1]} 20... Nxd7 {[%clk 0:01:51.7]}
21. Nxa6 {[%clk 0:00:48.8]} 21... Rxa8 {[%clk 0:01:42.8]} 22. Nxb4 {[%clk
0:00:49.1]} 22... Nc5 {[%clk 0:01:40.1]} 23. Nc3 {[%clk 0:00:40.1]} 23... Na6
{[%clk 0:01:23.1]} 24. Nxa6 {[%clk 0:00:39]} 24... Rxa6 {[%clk 0:01:23.3]} 25.
a3 {[%clk 0:00:39.9]} 25... Kf8 {[%clk 0:01:22.6]} 26. a4 {[%clk 0:00:27.5]}
26... Ke7 {[%clk 0:01:20.4]} 27. b3 {[%clk 0:00:28.9]} 27... Ra8 {[%clk
0:01:15.2]} 28. Nb5 {[%clk 0:00:28.8]} 28... Rc8 {[%clk 0:01:10.2]} 29. Kd2
{[%clk 0:00:27.8]} 29... Rc5 {[%clk 0:01:08]} 30. Kd3 {[%clk 0:00:21.4]} 30...
f6 {[%clk 0:01:07.8]} 31. b4 {[%clk 0:00:22.4]} 31... Rd5+ {[%clk 0:01:04.4]}
32. Ke4 {[%clk 0:00:23.6]} 32... Rd2 {[%clk 0:00:51.2]} 33. Nd4 {[%clk
0:00:23.7]} 33... Rxg2 {[%clk 0:00:40.7]} 34. a5 {[%clk 0:00:25]} 34... bxa5
{[%clk 0:00:40.5]} 35. bxa5 {[%clk 0:00:26.9]} 35... f5+ {[%clk 0:00:34.7]} 36.
Ke3 {[%clk 0:00:22.3]} 36... Rg1 {[%clk 0:00:28.1]} 37. c4 {[%clk 0:00:11.3]}
37... Ra1 {[%clk 0:00:26.5]} 38. Nb3 {[%clk 0:00:09]} 38... Ra3 {[%clk
0:00:26.1]} 39. Kd4 {[%clk 0:00:10.3]} 39... Rxb3 {[%clk 0:00:26.7]} 40. Kc5
{[%clk 0:00:11.8]} 40... Kd7 {[%clk 0:00:23.6]} 41. a6 {[%clk 0:00:12.5]} 41...
Ra3 {[%clk 0:00:22.3]} 42. Kb6 {[%clk 0:00:13]} 42... g5 {[%clk 0:00:22.8]} 43.
fxg5 {[%clk 0:00:13]} 43... hxg5 {[%clk 0:00:23.6]} 44. c5 {[%clk 0:00:07.3]}
44... Rxa6+ {[%clk 0:00:22]} 45. Kxa6 {[%clk 0:00:08]} 45... Kc6 {[%clk
0:00:23.5]} 46. h4 {[%clk 0:00:08.4]} 46... gxh4 {[%clk 0:00:23.5]} 0-1

[Event "*** Titled Tuesday Blitz"]
[Site "Chess.com"]
[Date "2019.02.05"]
[Round "2"]
[White "ChristopherYoo"]
[Black "NMJeevanK"]
[Result "1-0"]
[WhiteElo "2649"]
[BlackElo "2324"]
[TimeControl "180+2"]
[EndTime "13:23:46 PST"]
[Termination "ChristopherYoo won by resignation"]

1. e4 {[%clk 0:03:01.9]} 1... e5 {[%clk 0:03:00.5]} 2. Nf3 {[%clk 0:03:02.6]}
2... Nc6 {[%clk 0:03:01]} 3. Bc4 {[%clk 0:03:00.5]} 3... Bc5 {[%clk 0:02:57.8]}
4. O-O {[%clk 0:03:01.4]} 4... d6 {[%clk 0:02:57.3]} 5. h3 {[%clk 0:02:54.5]}
5... h6 {[%clk 0:02:50.5]} 6. c3 {[%clk 0:02:51.9]} 6... Na5 {[%clk 0:02:42.9]}
7. Bb5+ {[%clk 0:02:41.2]} 7... c6 {[%clk 0:02:43.3]} 8. Be2 {[%clk 0:02:39.5]}
8... Nf6 {[%clk 0:02:30.2]} 9. b4 {[%clk 0:02:39.1]} 9... Nxe4 {[%clk
0:02:31.1]} 10. bxc5 {[%clk 0:02:39.9]} 10... Nxc5 {[%clk 0:02:30.2]} 11. d4
{[%clk 0:02:41.6]} 11... exd4 {[%clk 0:02:29.4]} 12. cxd4 {[%clk 0:02:43.5]}
12... Ne4 {[%clk 0:02:20.8]} 13. d5 {[%clk 0:02:40]} 13... O-O {[%clk
0:02:19.5]} 14. Bb2 {[%clk 0:02:26.2]} 14... c5 {[%clk 0:01:53.3]} 15. Nc3
{[%clk 0:02:14.1]} 15... Nf6 {[%clk 0:01:48.6]} 16. Re1 {[%clk 0:01:58.7]} 16...
a6 {[%clk 0:01:47.1]} 17. a4 {[%clk 0:01:53.4]} 17... Bf5 {[%clk 0:01:41.5]} 18.
Bd3 {[%clk 0:01:52.2]} 18... Qd7 {[%clk 0:01:36.6]} 19. Nh4 {[%clk 0:01:50.8]}
19... Bxh3 {[%clk 0:01:28.8]} 20. gxh3 {[%clk 0:01:44.6]} 20... Qxh3 {[%clk
0:01:30.7]} 21. Nf3 {[%clk 0:01:26.5]} 21... Nh5 {[%clk 0:01:05.8]} 22. Nh2
{[%clk 0:01:13.4]} 22... Nf4 {[%clk 0:00:59]} 23. Bf1 {[%clk 0:01:14.5]} 23...
Qf5 {[%clk 0:00:44.4]} 24. Re3 {[%clk 0:01:00.7]} 24... Rae8 {[%clk 0:00:38.9]}
25. Rg3 {[%clk 0:00:57.2]} 25... Ng6 {[%clk 0:00:36.8]} 26. Bd3 {[%clk 0:00:56]}
26... Qf4 {[%clk 0:00:35.5]} 27. Rg4 {[%clk 0:00:38.1]} 27... Qf6 {[%clk
0:00:31.3]} 28. Rb1 {[%clk 0:00:32.9]} 28... Ne5 {[%clk 0:00:28.8]} 29. Ne4
{[%clk 0:00:31.6]} 29... Qd8 {[%clk 0:00:25.8]} 30. Rf4 {[%clk 0:00:21.1]} 30...
f5 {[%clk 0:00:26.1]} 31. Ng3 {[%clk 0:00:21.5]} 31... Qg5 {[%clk 0:00:23.6]}
32. Bxe5 {[%clk 0:00:18.5]} 32... Rxe5 {[%clk 0:00:24.4]} 33. Qf3 {[%clk
0:00:15.9]} 33... Rfe8 {[%clk 0:00:21.6]} 34. Bxf5 {[%clk 0:00:16.3]} 34... Qe7
{[%clk 0:00:17.9]} 35. Be6+ {[%clk 0:00:16.9]} 35... Kh8 {[%clk 0:00:19.4]} 36.
Rf7 {[%clk 0:00:16.3]} 36... Qd8 {[%clk 0:00:19.6]} 37. Ng4 {[%clk 0:00:17.2]}
37... Rg5 {[%clk 0:00:20.2]} 38. Nf5 {[%clk 0:00:15.1]} 38... Nc4 {[%clk
0:00:15.1]} 39. Rbxb7 {[%clk 0:00:13.3]} 39... Ne5 {[%clk 0:00:15.3]} 40. Qh3
{[%clk 0:00:06.6]} 40... Rxg4+ {[%clk 0:00:14.6]} 41. Ng3 {[%clk 0:00:07.9]}
41... Nxf7 {[%clk 0:00:10.7]} 42. Qxg4 {[%clk 0:00:08.1]} 42... Ng5 {[%clk
0:00:12.1]} 43. Nh5 {[%clk 0:00:09]} 43... Re7 {[%clk 0:00:08.5]} 44. Rxe7
{[%clk 0:00:06.5]} 44... Qxe7 {[%clk 0:00:10.4]} 45. Qf5 {[%clk 0:00:07.2]}
45... Nxe6 {[%clk 0:00:07.6]} 46. dxe6 {[%clk 0:00:07.5]} 46... Kg8 {[%clk
0:00:08.7]} 47. Nf4 {[%clk 0:00:08.1]} 47... Qf8 {[%clk 0:00:08.7]} 48. Qd5
{[%clk 0:00:07.2]} 48... Kh7 {[%clk 0:00:08.6]} 49. Qe4+ {[%clk 0:00:07.4]}
49... Kg8 {[%clk 0:00:09.3]} 50. e7 {[%clk 0:00:07.5]} 50... Qe8 {[%clk
0:00:10.8]} 51. Qe6+ {[%clk 0:00:08.7]} 51... Kh7 {[%clk 0:00:11.4]} 52. Qxd6
{[%clk 0:00:09.8]} 52... c4 {[%clk 0:00:09.9]} 53. Qd8 {[%clk 0:00:10.8]} 53...
Qxa4 {[%clk 0:00:11]} 54. e8=Q {[%clk 0:00:11.4]} 1-0

[Event "*** Titled Tuesday Blitz"]
[Site "Chess.com"]
[Date "2019.02.05"]
[Round "2"]
[White "StephenDedalus83"]
[Black "hurricane7791"]
[Result "1/2-1/2"]
[WhiteElo "2717"]
[BlackElo "2681"]
[TimeControl "180+2"]
[EndTime "13:23:47 PST"]
[Termination "Game drawn by agreement"]

1. e4 {[%clk 0:03:01.9]} 1... c5 {[%clk 0:03:00.7]} 2. Nf3 {[%clk 0:03:02.3]}
2... d6 {[%clk 0:03:01.1]} 3. d4 {[%clk 0:03:03.3]} 3... cxd4 {[%clk 0:03:03]}
4. Nxd4 {[%clk 0:03:04.7]} 4... Nf6 {[%clk 0:03:04.2]} 5. Nc3 {[%clk 0:03:05.8]}
5... a6 {[%clk 0:03:05.3]} 6. g3 {[%clk 0:03:06.4]} 6... e5 {[%clk 0:03:06]} 7.
Nde2 {[%clk 0:03:07.1]} 7... Be7 {[%clk 0:03:07.4]} 8. Bg2 {[%clk 0:03:07.5]}
8... b5 {[%clk 0:03:08.9]} 9. Nd5 {[%clk 0:03:07.2]} 9... Bb7 {[%clk 0:03:08.7]}
10. Nec3 {[%clk 0:03:06.8]} 10... Nbd7 {[%clk 0:03:09.4]} 11. O-O {[%clk
0:02:56.1]} 11... Rc8 {[%clk 0:03:09.9]} 12. a4 {[%clk 0:02:55]} 12... bxa4
{[%clk 0:03:04.9]} 13. Rxa4 {[%clk 0:02:53.9]} 13... O-O {[%clk 0:03:05.8]} 14.
Be3 {[%clk 0:02:11.4]} 14... Nc5 {[%clk 0:02:55.3]} 15. Bxc5 {[%clk 0:02:06.2]}
15... Rxc5 {[%clk 0:02:57.2]} 16. Nxf6+ {[%clk 0:02:01.2]} 16... Bxf6 {[%clk
0:02:57.9]} 17. Qd3 {[%clk 0:02:01.9]} 17... Qb6 {[%clk 0:02:55.2]} 18. Ra3
{[%clk 0:01:53.2]} 18... Qc7 {[%clk 0:02:49.9]} 19. Rd1 {[%clk 0:01:50.7]} 19...
Be7 {[%clk 0:02:50.2]} 20. Rb3 {[%clk 0:01:50.2]} 20... Rc8 {[%clk 0:02:41.5]}
21. Bh3 {[%clk 0:01:50.5]} 21... Rd8 {[%clk 0:02:38.9]} 22. Ra1 {[%clk
0:01:45.2]} 22... Bf8 {[%clk 0:02:36.6]} 23. Bf1 {[%clk 0:01:42.1]} 23... Rc8
{[%clk 0:02:34.4]} 24. Qf3 {[%clk 0:01:35.8]} 24... Ra8 {[%clk 0:02:23.3]} 25.
Bd3 {[%clk 0:01:33.5]} 25... g6 {[%clk 0:02:23]} 26. Qe2 {[%clk 0:01:33.2]}
26... a5 {[%clk 0:02:23.7]} 27. Nb5 {[%clk 0:01:28.1]} 27... Qd7 {[%clk
0:02:19.8]} 28. c4 {[%clk 0:01:28.3]} 28... Bc6 {[%clk 0:02:14.8]} 29. Rba3
{[%clk 0:01:25.9]} 29... Qd8 {[%clk 0:02:01]} 30. b4 {[%clk 0:01:25]} 30... axb4
{[%clk 0:01:58.8]} 31. Rxa8 {[%clk 0:01:25.5]} 31... Bxa8 {[%clk 0:02:00.7]} 32.
Qb2 {[%clk 0:01:24.2]} 32... Bc6 {[%clk 0:01:55.6]} 33. Qxb4 {[%clk 0:01:24.6]}
33... d5 {[%clk 0:01:50.4]} 34. Qb3 {[%clk 0:01:22.9]} 34... dxe4 {[%clk
0:01:48]} 35. Bf1 {[%clk 0:01:23.8]} 35... Qb6 {[%clk 0:01:30.3]} 36. Qe3 {[%clk
0:01:24.1]} 36... f5 {[%clk 0:01:25.4]} 37. Rd1 {[%clk 0:01:22.2]} 37... Be7
{[%clk 0:01:10.3]} 38. Nc3 {[%clk 0:01:15.9]} 38... Qb4 {[%clk 0:01:04.7]} 39.
Nd5 {[%clk 0:01:15.7]} 39... Bxd5 {[%clk 0:01:05.9]} 40. Rxd5 {[%clk 0:01:09.7]}
40... Rxd5 {[%clk 0:01:06.7]} 41. cxd5 {[%clk 0:01:10.9]} 41... Bc5 {[%clk
0:01:07.8]} 42. Qe2 {[%clk 0:01:07.5]} 42... Qd4 {[%clk 0:01:08.1]} 43. Kg2
{[%clk 0:01:06.5]} 43... Qxd5 {[%clk 0:01:05.8]} 44. Qc4 {[%clk 0:01:06.5]}
44... Qxc4 {[%clk 0:01:06.5]} 45. Bxc4+ {[%clk 0:01:06.8]} 45... Kg7 {[%clk
0:01:08.4]} 46. Bd5 {[%clk 0:01:06.6]} 46... Kf6 {[%clk 0:01:09.5]} 47. Ba8
{[%clk 0:01:06.8]} 47... h6 {[%clk 0:01:09.7]} 48. h3 {[%clk 0:01:05.8]} 48...
g5 {[%clk 0:01:05]} 49. g4 {[%clk 0:01:06]} 49... Bb6 {[%clk 0:00:53.2]} 50. Bb7
{[%clk 0:01:06.4]} 50... h5 {[%clk 0:00:47.9]} 51. gxf5 {[%clk 0:01:02.3]} 51...
Kxf5 {[%clk 0:00:48.6]} 52. Kg3 {[%clk 0:01:01.2]} 52... h4+ {[%clk 0:00:49.6]}
53. Kg2 {[%clk 0:01:02.1]} 53... Kf4 {[%clk 0:00:51.5]} 54. Bc8 {[%clk
0:00:59.8]} 54... e3 {[%clk 0:00:51.2]} 55. fxe3+ {[%clk 0:01:00.6]} 55... Bxe3
{[%clk 0:00:53.1]} 56. Bg4 {[%clk 0:00:58.7]} 56... Bc5 {[%clk 0:00:53.2]} 57.
Kf1 {[%clk 0:00:59.3]} 57... Ke3 {[%clk 0:00:54.6]} 58. Bh5 {[%clk 0:00:58.2]}
58... e4 {[%clk 0:00:52.7]} 59. Bg4 {[%clk 0:00:58.5]} 59... Bd6 {[%clk
0:00:47.9]} 60. Bh5 {[%clk 0:00:58.3]} 60... Kf4 {[%clk 0:00:49.1]} 61. Kg2
{[%clk 0:00:58.6]} 61... Ke3 {[%clk 0:00:46.1]} 62. Bg4 {[%clk 0:00:58.9]} 62...
Kd2 {[%clk 0:00:47.2]} 63. Kf1 {[%clk 0:00:59.8]} 63... Bg3 {[%clk 0:00:46]} 64.
Bh5 {[%clk 0:01:00.6]} 64... Be5 {[%clk 0:00:43.8]} 65. Bg4 {[%clk 0:01:01.6]}
65... Ke3 {[%clk 0:00:43.6]} 66. Bh5 {[%clk 0:01:01.9]} 66... Kf4 {[%clk
0:00:44.4]} 67. Kg2 {[%clk 0:01:03.1]} 67... e3 {[%clk 0:00:45.7]} 68. Bg4
{[%clk 0:01:03.8]} 68... Bc3 {[%clk 0:00:44.4]} 69. Be2 {[%clk 0:01:04.3]} 69...
Bd2 {[%clk 0:00:44.2]} 1/2-1/2

[Event "*** Titled Tuesday Blitz"]
[Site "Chess.com"]
[Date "2019.02.05"]
[Round "2"]
[White "GremioPrudente"]
[Black "GrandGlacier"]
[Result "1/2-1/2"]
[WhiteElo "2075"]
[BlackElo "2165"]
[TimeControl "180+2"]
[EndTime "13:23:47 PST"]
[Termination "Game drawn by repetition"]

1. Nf3 {[%clk 0:03:01.9]} 1... Nf6 {[%clk 0:03:00.3]} 2. c4 {[%clk 0:03:02.1]}
2... g6 {[%clk 0:02:59.3]} 3. b3 {[%clk 0:03:02.2]} 3... Bg7 {[%clk 0:03:00.5]}
4. Bb2 {[%clk 0:03:03.7]} 4... a5 {[%clk 0:03:01.4]} 5. g3 {[%clk 0:02:57.9]}
5... c6 {[%clk 0:02:57.5]} 6. Bg2 {[%clk 0:02:58.2]} 6... O-O {[%clk 0:02:57.7]}
7. O-O {[%clk 0:02:56.9]} 7... d5 {[%clk 0:02:58.7]} 8. cxd5 {[%clk 0:02:56.6]}
8... cxd5 {[%clk 0:02:58.3]} 9. d3 {[%clk 0:02:51.4]} 9... Nc6 {[%clk
0:02:58.7]} 10. Nbd2 {[%clk 0:02:51.1]} 10... a4 {[%clk 0:02:59.2]} 11. Ne5
{[%clk 0:02:51.5]} 11... Qb6 {[%clk 0:02:47.2]} 12. Nxc6 {[%clk 0:02:47.7]}
12... bxc6 {[%clk 0:02:47.4]} 13. Qc2 {[%clk 0:02:35.5]} 13... Bg4 {[%clk
0:02:36.5]} 14. Nf3 {[%clk 0:02:27.8]} 14... Rfc8 {[%clk 0:02:34.7]} 15. bxa4
{[%clk 0:02:20.6]} 15... c5 {[%clk 0:02:29.1]} 16. Rab1 {[%clk 0:02:12.1]} 16...
Qa5 {[%clk 0:02:23.2]} 17. Ne5 {[%clk 0:01:56.5]} 17... Be6 {[%clk 0:02:18.8]}
18. Rfc1 {[%clk 0:01:18.8]} 18... Qxa4 {[%clk 0:02:17.6]} 19. Qxa4 {[%clk
0:01:17.8]} 19... Rxa4 {[%clk 0:02:19.5]} 20. a3 {[%clk 0:01:13]} 20... Ne8
{[%clk 0:02:09.2]} 21. f4 {[%clk 0:01:02.2]} 21... Nd6 {[%clk 0:02:08.4]} 22.
Ra1 {[%clk 0:00:50]} 22... Nb5 {[%clk 0:01:51.2]} 23. e3 {[%clk 0:00:41]} 23...
f6 {[%clk 0:01:33.8]} 24. Nf3 {[%clk 0:00:36.4]} 24... c4 {[%clk 0:01:23.5]} 25.
dxc4 {[%clk 0:00:33.4]} 25... Raxc4 {[%clk 0:01:17.5]} 26. Rxc4 {[%clk 0:00:26]}
26... dxc4 {[%clk 0:01:16.2]} 27. a4 {[%clk 0:00:22.5]} 27... c3 {[%clk
0:01:17]} 28. Bc1 {[%clk 0:00:11.1]} 28... Nd6 {[%clk 0:01:16.4]} 29. Nd4 {[%clk
0:00:11.9]} 29... Bc4 {[%clk 0:01:15]} 30. Bf1 {[%clk 0:00:11.3]} 30... e5
{[%clk 0:01:15.1]} 31. Bxc4+ {[%clk 0:00:10.6]} 31... Rxc4 {[%clk 0:01:15.9]}
32. Nb5 {[%clk 0:00:11.6]} 32... Nxb5 {[%clk 0:01:08.9]} 33. axb5 {[%clk
0:00:12.7]} 33... Rb4 {[%clk 0:01:10.2]} 34. Kf1 {[%clk 0:00:10.1]} 34... exf4
{[%clk 0:01:10.1]} 35. exf4 {[%clk 0:00:09.8]} 35... f5 {[%clk 0:01:09.4]} 36.
Ra8+ {[%clk 0:00:07]} 36... Kf7 {[%clk 0:01:09.4]} 37. Ra7+ {[%clk 0:00:03.6]}
37... Ke6 {[%clk 0:01:10]} 38. Rxg7 {[%clk 0:00:03.7]} 38... Rb1 {[%clk
0:01:10.6]} 39. Ke2 {[%clk 0:00:03.7]} 39... Rxc1 {[%clk 0:01:11.2]} 40. Rc7
{[%clk 0:00:04.4]} 40... Kd5 {[%clk 0:00:55.3]} 41. Rc8 {[%clk 0:00:04.6]} 41...
Kd4 {[%clk 0:00:54.6]} 42. b6 {[%clk 0:00:05.6]} 42... Rb1 {[%clk 0:00:54.6]}
43. Rd8+ {[%clk 0:00:05.9]} 43... Ke4 {[%clk 0:00:55.1]} 44. Re8+ {[%clk
0:00:06.8]} 44... Kd5 {[%clk 0:00:55.9]} 45. Rd8+ {[%clk 0:00:08.4]} 45... Kc4
{[%clk 0:00:56.5]} 46. Rc8+ {[%clk 0:00:09.6]} 46... Kd4 {[%clk 0:00:55.1]} 47.
Rd8+ {[%clk 0:00:11]} 47... Kc5 {[%clk 0:00:54.5]} 48. Rc8+ {[%clk 0:00:12.3]}
48... Kxb6 {[%clk 0:00:55.3]} 49. Rxc3 {[%clk 0:00:13.3]} 49... Rb2+ {[%clk
0:00:55.6]} 50. Kf3 {[%clk 0:00:14.8]} 50... Rxh2 {[%clk 0:00:57.5]} 51. Rc8
{[%clk 0:00:15]} 51... Kb7 {[%clk 0:00:57.3]} 52. Rc5 {[%clk 0:00:15.2]} 52...
Kb6 {[%clk 0:00:57.6]} 53. Rc8 {[%clk 0:00:16.3]} 53... Rh1 {[%clk 0:00:56.3]}
54. Rc4 {[%clk 0:00:16.8]} 54... Rh2 {[%clk 0:00:53]} 55. Rc8 {[%clk 0:00:17.3]}
1/2-1/2

[Event "*** Titled Tuesday Blitz"]
[Site "Chess.com"]
[Date "2019.02.05"]
[Round "2"]
[White "DonPreuss"]
[Black "Agent-JL"]
[Result "1-0"]
[WhiteElo "2209"]
[BlackElo "2247"]
[TimeControl "180+2"]
[EndTime "13:23:54 PST"]
[Termination "DonPreuss won by resignation"]

1. d4 {[%clk 0:03:01.9]} 1... Nf6 {[%clk 0:03:01]} 2. Nc3 {[%clk 0:03:02.4]}
2... d5 {[%clk 0:02:55.4]} 3. e4 {[%clk 0:03:03.4]} 3... dxe4 {[%clk 0:02:56]}
4. f3 {[%clk 0:03:04.2]} 4... Bf5 {[%clk 0:02:54.4]} 5. fxe4 {[%clk 0:03:04.8]}
5... Nxe4 {[%clk 0:02:56.3]} 6. Qf3 {[%clk 0:03:05.8]} 6... Qxd4 {[%clk
0:02:27]} 7. Qxf5 {[%clk 0:02:57.9]} 7... Nxc3 {[%clk 0:02:27.7]} 8. Qc8+ {[%clk
0:02:53.5]} 8... Qd8 {[%clk 0:02:06.7]} 9. Qxd8+ {[%clk 0:02:53.6]} 9... Kxd8
{[%clk 0:02:08.6]} 10. bxc3 {[%clk 0:02:54.8]} 10... e5 {[%clk 0:01:56.1]} 11.
Bc4 {[%clk 0:02:54.3]} 11... f6 {[%clk 0:01:55.1]} 12. a4 {[%clk 0:02:46.6]}
12... Bc5 {[%clk 0:01:38.3]} 13. Ba3 {[%clk 0:02:47.2]} 13... Bxa3 {[%clk
0:01:37.4]} 14. Rxa3 {[%clk 0:02:48]} 14... Ke7 {[%clk 0:01:38.4]} 15. Nf3
{[%clk 0:02:44.1]} 15... Nd7 {[%clk 0:01:37.9]} 16. Ke2 {[%clk 0:02:40.3]} 16...
Nc5 {[%clk 0:01:37.8]} 17. Nd2 {[%clk 0:02:32.9]} 17... c6 {[%clk 0:01:35.6]}
18. Raa1 {[%clk 0:02:22.7]} 18... Rhd8 {[%clk 0:01:21.4]} 19. Bd3 {[%clk
0:02:00.3]} 19... g6 {[%clk 0:01:12.8]} 20. Nb3 {[%clk 0:02:01]} 20... Ne6
{[%clk 0:01:13.8]} 21. g3 {[%clk 0:02:02.2]} 21... f5 {[%clk 0:01:12]} 22. Bc4
{[%clk 0:01:50.2]} 22... Nc7 {[%clk 0:01:11.4]} 23. Rad1 {[%clk 0:01:46.8]}
23... b5 {[%clk 0:01:07.5]} 24. axb5 {[%clk 0:01:46]} 24... cxb5 {[%clk
0:01:09.4]} 25. Rxd8 {[%clk 0:01:22.9]} 25... Rxd8 {[%clk 0:01:05.9]} 26. Na5
{[%clk 0:01:23]} 26... Kf6 {[%clk 0:00:55.3]} 27. Bb3 {[%clk 0:01:20]} 27... Nd5
{[%clk 0:00:36.1]} 28. Bxd5 {[%clk 0:01:12]} 28... Rxd5 {[%clk 0:00:38]} 29. Nb3
{[%clk 0:00:56.7]} 29... Rd6 {[%clk 0:00:27.9]} 30. Ra1 {[%clk 0:00:48.6]} 30...
a6 {[%clk 0:00:20.8]} 31. Nc5 {[%clk 0:00:48.8]} 31... Kg5 {[%clk 0:00:11.9]}
32. Rxa6 {[%clk 0:00:46.9]} 32... Rd5 {[%clk 0:00:12.6]} 33. Nb3 {[%clk
0:00:41.4]} 33... h5 {[%clk 0:00:11.8]} 34. Ra1 {[%clk 0:00:34.8]} 34... h4
{[%clk 0:00:11.8]} 35. gxh4+ {[%clk 0:00:32.3]} 35... Kxh4 {[%clk 0:00:13.7]}
36. Rd1 {[%clk 0:00:33.1]} 36... Rxd1 {[%clk 0:00:13.1]} 37. Kxd1 {[%clk
0:00:35]} 37... Kh3 {[%clk 0:00:14.4]} 38. Nd2 {[%clk 0:00:27.5]} 38... e4
{[%clk 0:00:15.1]} 39. Nf1 {[%clk 0:00:27]} 39... Kg2 {[%clk 0:00:15.6]} 40. Ke2
{[%clk 0:00:28.2]} 40... f4 {[%clk 0:00:15.7]} 41. h4 {[%clk 0:00:26.5]} 41...
Kh3 {[%clk 0:00:16]} 42. Nd2 {[%clk 0:00:25.7]} 42... e3 {[%clk 0:00:15.5]} 43.
Nf3 {[%clk 0:00:26.2]} 43... Kg4 {[%clk 0:00:16.5]} 44. c4 {[%clk 0:00:23.4]}
44... bxc4 {[%clk 0:00:17.4]} 45. Ne5+ {[%clk 0:00:24.5]} 45... Kf5 {[%clk
0:00:15.7]} 46. Nxc4 {[%clk 0:00:26.4]} 46... Kg4 {[%clk 0:00:16.7]} 47. Ne5+
{[%clk 0:00:27.2]} 47... Kf5 {[%clk 0:00:18.1]} 48. Nf3 {[%clk 0:00:27.6]} 48...
Kg4 {[%clk 0:00:19.1]} 49. c4 {[%clk 0:00:28.7]} 49... Kf5 {[%clk 0:00:19.6]}
50. c5 {[%clk 0:00:28.4]} 50... Ke6 {[%clk 0:00:21.1]} 51. Kd3 {[%clk
0:00:27.7]} 51... Kd5 {[%clk 0:00:22.1]} 52. c6 {[%clk 0:00:27.8]} 52... Kxc6
{[%clk 0:00:23.1]} 53. Ke4 {[%clk 0:00:29.2]} 53... Kd6 {[%clk 0:00:23.1]} 54.
Kxf4 {[%clk 0:00:30.2]} 54... e2 {[%clk 0:00:24.5]} 55. Kg5 {[%clk 0:00:29.1]}
55... Kd5 {[%clk 0:00:24]} 56. Kxg6 {[%clk 0:00:23.6]} 56... Ke4 {[%clk
0:00:19.9]} 57. Ne1 {[%clk 0:00:23.6]} 1-0